fUSD/lending_fUSD_20250211
["ID","MTS","AMOUNT","RATE_DAILY","PERIOD"]
[352713003,1739269841813,-500.0,0.00010958,2]
[352713004,1739269841822,-500.0,0.00010958,2]
[352713005,1739269841832,-500.0,0.00010958,2]
[352713006,1739269841841,-500.0,0.00010958,2]
[352713007,1739269841850,-500.0,0.00010958,2]
[352713008,1739269841859,-500.0,0.00010958,2]
[352713009,1739269841868,-500.0,0.00010958,2]
[352713010,1739269841879,-500.0,0.00010958,2]
[352713011,1739269841888,-503.78176183,0.00010958,2]
[352713012,1739269841898,-501.88677955,0.00010958,2]
[352713013,1739269841907,-500.0,0.00010958,2]
[352713014,1739269841916,-500.0,0.00010958,2]
[352713015,1739269841926,-500.0,0.00010958,2]
[352713016,1739269841935,-500.0,0.00010958,2]
[352713017,1739269841944,-501.03812812,0.00010958,2]
[352713018,1739269841953,-504.71680737,0.00010958,2]
[352713019,1739269841962,-500.0,0.00010958,2]
[352713020,1739269841971,-502.14616378,0.00010958,2]
[352713021,1739269841980,-500.0,0.00010958,2]
[352713022,1739269841989,-500.0,0.00010958,2]
[352713023,1739269841999,-500.0,0.00010958,2]
[352713024,1739269842008,-500.0,0.00010958,2]
[352713025,1739269842018,-500.0,0.00010958,2]
[352713026,1739269842027,-500.0,0.00010958,2]
[352713027,1739269842036,-168.19355706,0.00010958,2]
[352713028,1739269842045,-502.49664044,0.00010958,2]
[352713029,1739269842054,-500.0,0.00010958,2]
[352713030,1739269842064,-498.81298779,0.00010958,2]
[352713031,1739269842073,-500.0,0.00010958,2]
[352713032,1739269842082,-500.0,0.00010958,2]
[352713033,1739269842092,-500.0,0.00010958,2]
[352713034,1739269842101,-500.0,0.00010958,2]
[352713035,1739269842111,-500.0,0.00010958,2]
[352713036,1739269842122,-500.0,0.00010958,2]
[352713037,1739269842131,-500.0,0.00010958,2]
[352713038,1739269842140,-500.0,0.00010958,2]
[352713039,1739269842150,-500.0,0.00010958,2]
[352713040,1739269842159,-500.0,0.00010958,2]
[352713041,1739269842168,-502.69466534,0.00010958,2]
[352713042,1739269842177,-500.0,0.00010958,2]
[352713043,1739269842186,-500.0,0.00010958,2]
[352713044,1739269842199,-500.0,0.00010958,2]
[352713045,1739269842208,-500.0,0.00010958,2]
[352713046,1739269842217,-500.0,0.00010958,2]
[352713047,1739269842226,-625.22632406,0.00010958,2]
[352713048,1739269842238,-500.0,0.00010958,2]
[352713049,1739269842247,-500.0,0.00010958,2]
[352713050,1739269842256,-500.0,0.00010958,2]
[352713051,1739269842267,-500.0,0.00010958,2]
[352713052,1739269842276,-504.4550647,0.00010958,2]
[352713053,1739269842286,-500.0,0.00010958,2]
[352713054,1739269842295,-500.0,0.00010958,2]
[352713055,1739269842305,-500.0,0.00010958,2]
[352713056,1739269842315,-500.68615643,0.00010958,2]
[352713057,1739269842324,-500.0,0.00010958,2]
[352713058,1739269842333,-500.0,0.00010958,2]
[352713059,1739269842342,-500.0,0.00010958,2]
[352713060,1739269842351,-925.311596,0.00010958,2]
[352713061,1739269842361,-500.0,0.00010958,2]
[352713062,1739269842371,-500.0,0.00010958,2]
[352713063,1739269842380,-500.0,0.00010958,2]
[352713064,1739269842389,-500.0,0.00010958,2]
[352713065,1739269842398,-500.0,0.00010958,2]
[352713066,1739269842407,-500.0,0.00010958,2]
[352713067,1739269842417,-156.627887,0.00010958,2]
[352713068,1739269842426,-504.75385302,0.00010958,2]
[352713069,1739269842436,-548.39359317,0.00010958,2]
[352713070,1739269842446,-500.0,0.00010958,2]
[352713071,1739269842455,-500.0,0.00010958,2]
[352713072,1739269842465,-508.57914277,0.00010958,2]
[352713073,1739269842475,-500.0,0.00010958,2]
[352713074,1739269842485,-500.0,0.00010958,2]
[352713075,1739269842494,-500.0,0.00010958,2]
[352713076,1739269842503,-155.788179,0.00010958,2]
[352713077,1739269842512,-500.0,0.00010958,2]
[352713078,1739269842522,-500.6396317,0.00010958,2]
[352713079,1739269842531,-500.0,0.00010958,2]
[352713080,1739269842541,-501.6613236,0.00010958,2]
[352713081,1739269842551,-500.0,0.00010958,2]
[352713083,1739269842560,-500.0,0.00010958,2]
[352713085,1739269842568,-500.0,0.00010958,2]
[352713086,1739269842577,-500.0,0.00010958,2]
[352713087,1739269842586,-500.0,0.00010958,2]
[352713089,1739269842595,-500.0,0.00010958,2]
[352713090,1739269842605,-606.0,0.00010958,2]
[352713092,1739269842614,-500.0,0.00010958,2]
[352713095,1739269842623,-500.0,0.00010958,2]
[352713097,1739269842633,-500.0,0.00010958,2]
[352713099,1739269842642,-502.7357243,0.00010958,2]
[352713100,1739269842652,-503.29151254,0.00010958,2]
[352713101,1739269842661,-500.0,0.00010958,2]
[352713104,1739269842671,-517.50971811,0.00010958,2]
[352713107,1739269842680,-500.0,0.00010958,2]
[352713110,1739269842689,-500.0,0.00010958,2]
[352713112,1739269842698,-500.0,0.00010958,2]
[352713113,1739269842706,-500.0,0.00010958,2]
[352713115,1739269842716,-500.0,0.00010958,2]
[352713116,1739269842725,-506.7810114,0.00010958,2]
[352713117,1739269842734,-500.0,0.00010958,2]
[352713118,1739269842743,-244.45442174,0.00010958,2]
[352713119,1739269842752,-716.06798,0.00010958,2]
[352713120,1739269842761,-500.0,0.00010958,2]
[352713121,1739269842770,-500.0,0.00010958,2]
[352713122,1739269842779,-500.0,0.00010958,2]
[352713123,1739269842788,-504.15202984,0.00010958,2]
[352713124,1739269842798,-500.0,0.00010958,2]
[352713125,1739269842807,-576.79621403,0.00010958,2]
[352713126,1739269842816,-500.0,0.00010958,2]
[352713127,1739269842825,-500.0,0.00010958,2]
[352713128,1739269842834,-500.0,0.00010958,2]
[352713129,1739269842843,-507.90733075,0.00010958,2]
[352713130,1739269842853,-500.0,0.00010958,2]
[352713131,1739269842863,-500.0,0.00010958,2]
[352713132,1739269842872,-500.0,0.00010958,2]
[352713133,1739269842881,-500.0,0.00010958,2]
[352713134,1739269842891,-500.0,0.00010958,2]
[352713135,1739269842900,-500.0,0.00010958,2]
[352713136,1739269842909,-500.0,0.00010958,2]
[352713137,1739269842919,-500.0,0.00010958,2]
[352713138,1739269842927,-1139.62,0.00010958,2]
[352713139,1739269842937,-500.0,0.00010958,2]
[352713140,1739269842946,-500.0,0.00010958,2]
[352713141,1739269842955,-268.1251341,0.00010958,2]
[352713142,1739269842964,-500.0,0.00010958,2]
[352713143,1739269842973,-500.0,0.00010958,2]
[352713144,1739269842982,-500.0,0.00010958,2]
[352713145,1739269842991,-500.0,0.00010958,2]
[352713146,1739269843000,-500.0,0.00010958,2]
[352713147,1739269843009,-500.0,0.00010958,2]
[352713148,1739269843018,-500.0,0.00010958,2]
[352713149,1739269843028,-500.0,0.00010958,2]
[352713150,1739269843037,-500.0,0.00010958,2]
[352713151,1739269843046,-500.0,0.00010958,2]
[352713152,1739269843055,-500.0,0.00010958,2]
[352713153,1739269843064,-500.0,0.00010958,2]
[352713154,1739269843073,-501.72389907,0.00010958,2]
[352713155,1739269843082,-500.0,0.00010958,2]
[352713156,1739269843091,-507.03484675,0.00010958,2]
[352713157,1739269843100,-500.0,0.00010958,2]
[352713158,1739269843109,-500.0,0.00010958,2]
[352713159,1739269843120,-500.0,0.00010958,2]
[352713160,1739269843129,-500.0,0.00010958,2]
[352713161,1739269843138,-500.0,0.00010958,2]
[352713162,1739269843148,-500.0,0.00010958,2]
[352713163,1739269843157,-500.0,0.00010958,2]
[352713164,1739269843166,-500.0,0.00010958,2]
[352713165,1739269843176,-500.0,0.00010958,2]
[352713166,1739269843186,-998.3,0.00010958,2]
[352713167,1739269843200,-500.0,0.00010958,2]
[352713168,1739269843209,-500.0,0.00010958,2]
[352713169,1739269843218,-500.0,0.00010958,2]
[352713170,1739269843229,-500.0,0.00010958,2]
[352713171,1739269843238,-500.0,0.00010958,2]
[352713173,1739269843247,-505.22833877,0.00010958,2]
[352713174,1739269843257,-504.72989289,0.00010958,2]
[352713175,1739269843267,-738.49,0.00010958,2]
[352713176,1739269843276,-506.77,0.00010958,2]
[352713177,1739269843285,-500.0,0.00010958,2]
[352713180,1739269843295,-500.0,0.00010958,2]
[352713182,1739269843304,-500.0,0.00010958,2]
[352713184,1739269843313,-500.0,0.00010958,2]
[352713185,1739269843322,-500.0,0.00010958,2]
[352713187,1739269843331,-500.0,0.00010958,2]
[352713188,1739269843340,-500.0,0.00010958,2]
[352713190,1739269843349,-500.0,0.00010958,2]
[352713192,1739269843358,-500.0,0.00010958,2]
[352713193,1739269843367,-500.0,0.00010958,2]
[352713195,1739269843377,-503.32841009,0.00010958,2]
[352713197,1739269843386,-500.0,0.00010958,2]
[352713198,1739269843395,-500.0,0.00010958,2]
[352713200,1739269843404,-500.0,0.00010958,2]
[352713201,1739269843413,-500.0,0.00010958,2]
[352713202,1739269843422,-1367.94,0.00010958,2]
[352713203,1739269843431,-528.9,0.00010958,2]
[352713204,1739269843440,-500.0,0.00010958,2]
[352713205,1739269843449,-624.48,0.00010958,2]
[352713206,1739269843458,-500.0,0.00010958,2]
[352713207,1739269843467,-500.0,0.00010958,2]
[352713208,1739269843476,-1115.26,0.00010958,2]
[352713209,1739269843485,-500.0,0.00010958,2]
[352713210,1739269843494,-187.31168819,0.00010958,2]
[352713211,1739269843503,-500.0,0.00010958,2]
[352713212,1739269843512,-500.0,0.00010958,2]
[352713213,1739269843521,-500.0,0.00010958,2]
[352713214,1739269843530,-500.0,0.00010958,2]
[352713215,1739269843539,-500.0,0.00010958,2]
[352713216,1739269843548,-500.0,0.00010958,2]
[352713217,1739269843557,-500.0,0.00010958,2]
[352713218,1739269843566,-500.0,0.00010958,2]
[352713219,1739269843575,-912.46,0.00010958,2]
[352713220,1739269843584,-500.0,0.00010958,2]
[352713221,1739269843593,-500.0,0.00010958,2]
[352713222,1739269843602,-500.0,0.00010958,2]
[352713223,1739269843611,-500.0,0.00010958,2]
[352713224,1739269843619,-500.0,0.00010958,2]
[352713225,1739269843628,-500.0,0.00010958,2]
[352713226,1739269843637,-500.0,0.00010958,2]
[352713227,1739269843646,-500.0,0.00010958,2]
[352713228,1739269843655,-1093.25,0.00010958,2]
[352713229,1739269843664,-921.34,0.00010958,2]
[352713230,1739269843673,-500.0,0.00010958,2]
[352713231,1739269843683,-500.0,0.00010958,2]
[352713232,1739269843692,-275.20566866,0.00010958,2]
[352713233,1739269843701,-698.14,0.00010958,2]
[352713234,1739269843710,-500.0,0.00010958,2]
[352713235,1739269843719,-1030.45,0.00010958,2]
[352713236,1739269843729,-500.0,0.00010958,2]
[352713237,1739269843738,-500.0,0.00010958,2]
[352713238,1739269843747,-500.0,0.00010958,2]
[352713239,1739269843756,-500.0,0.00010958,2]
[352713240,1739269843765,-1064.19,0.00010958,2]
[352713241,1739269843775,-500.0,0.00010958,2]
[352713242,1739269843784,-183.494115,0.00010958,2]
[352713243,1739269843793,-500.0,0.00010958,2]
[352713244,1739269843802,-500.0,0.00010958,2]
[352713245,1739269843811,-500.0,0.00010958,2]
[352713246,1739269843820,-500.0,0.00010958,2]
[352713247,1739269843830,-1194.88,0.00010958,2]
[352713248,1739269843839,-500.0,0.00010958,2]
[352713249,1739269843849,-504.28597289,0.00010958,2]
[352713250,1739269843858,-500.0,0.00010958,2]
[352713251,1739269843867,-500.0,0.00010958,2]
[352713252,1739269843878,-500.0,0.00010958,2]
[352713253,1739269843887,-500.0,0.00010958,2]
[352713254,1739269843897,-682.44,0.00010958,2]
[352713255,1739269843906,-500.0,0.00010958,2]
[352713256,1739269843917,-500.0,0.00010958,2]
[352713257,1739269843927,-159.621069,0.00010958,2]
[352713258,1739269843937,-500.0,0.00010958,2]
[352713259,1739269843946,-501.64927883,0.00010958,2]
[352713260,1739269843955,-500.0,0.00010958,2]
[352713261,1739269843965,-500.0,0.00010958,2]
[352713262,1739269843974,-1265.5,0.00010958,2]
[352713263,1739269843983,-500.0,0.00010958,2]
[352713264,1739269843992,-500.0,0.00010958,2]
[352713265,1739269844001,-500.0,0.00010958,2]
[352713266,1739269844011,-827.24,0.00010958,2]
[352713267,1739269844020,-500.0,0.00010958,2]
[352713268,1739269844029,-500.0,0.00010958,2]
[352713269,1739269844038,-500.0,0.00010958,2]
[352713270,1739269844047,-593.85,0.00010958,2]
[352713271,1739269844056,-500.0,0.00010958,2]
[352713272,1739269844065,-500.0,0.00010958,2]
[352713273,1739269844074,-500.0,0.00010958,2]
[352713274,1739269844083,-500.0,0.00010958,2]
[352713275,1739269844091,-501.71323372,0.00010958,2]
[352713276,1739269844100,-500.0,0.00010958,2]
[352713277,1739269844109,-500.0,0.00010958,2]
[352713278,1739269844118,-500.0,0.00010958,2]
[352713279,1739269844129,-500.0,0.00010958,2]
[352713280,1739269844138,-370.93884154,0.00010958,2]
[352713281,1739269844147,-500.0,0.00010958,2]
[352713282,1739269844156,-500.0,0.00010958,2]
[352713283,1739269844165,-505.63498316,0.00010958,2]
[352713284,1739269844174,-501.22951178,0.00010958,2]
[352713285,1739269844186,-810.43,0.00010958,2]
[352713286,1739269844196,-500.0,0.00010958,2]
[352713287,1739269844205,-912.14,0.00010958,2]
[352713288,1739269844214,-500.0,0.00010958,2]
[352713289,1739269844223,-500.0,0.00010958,2]
[352713290,1739269844233,-500.0,0.00010958,2]
[352713291,1739269844242,-500.0,0.00010958,2]
[352713292,1739269844251,-844.52,0.00010958,2]
[352713293,1739269844259,-500.0,0.00010958,2]
[352713294,1739269844269,-589.78,0.00010958,2]
[352713295,1739269844278,-500.0,0.00010958,2]
[352713296,1739269844287,-500.0,0.00010958,2]
[352713297,1739269844296,-498.49548242,0.00010958,2]
[352713298,1739269844305,-500.0,0.00010958,2]
[352713299,1739269844315,-414.79959923,0.00010958,2]
[352713300,1739269844324,-662.71,0.00010958,2]
[352713301,1739269844334,-500.0,0.00010958,2]
[352713302,1739269844344,-500.0,0.00010958,2]
[352713303,1739269844354,-500.0,0.00010958,2]
[352713304,1739269844363,-500.0,0.00010958,2]
[352713305,1739269844372,-500.0,0.00010958,2]
[352713306,1739269844381,-500.0,0.00010958,2]
[352713307,1739269844391,-500.0,0.00010958,2]
[352713308,1739269844399,-2057.5,0.00010958,2]
[352713309,1739269844408,-500.0,0.00010958,2]
[352713310,1739269844417,-500.0,0.00010958,2]
[352713311,1739269844427,-500.0,0.00010958,2]
[352713312,1739269844436,-501.84145718,0.00010958,2]
[352713313,1739269844446,-500.0,0.00010958,2]
[352713314,1739269844455,-516.64968171,0.00010958,2]
[352713315,1739269844463,-1047.5,0.00010958,2]
[352713316,1739269844472,-504.19940759,0.00010958,2]
[352713317,1739269844481,-755.63,0.00010958,2]
[352713318,1739269844490,-500.0,0.00010958,2]
[352713319,1739269844499,-292.98145048,0.00010958,2]
[352713320,1739269844508,-500.0,0.00010958,2]
[352713321,1739269844517,-500.0,0.00010958,2]
[352713322,1739269844526,-500.0,0.00010958,2]
[352713323,1739269844535,-500.0,0.00010958,2]
[352713324,1739269844544,-500.0,0.00010958,2]
[352713325,1739269844554,-500.0,0.00010958,2]
[352713326,1739269844563,-500.0,0.00010958,2]
[352713327,1739269844571,-849.11,0.00010958,2]
[352713328,1739269844581,-500.0,0.00010958,2]
[352713329,1739269844590,-500.0,0.00010958,2]
[352713330,1739269844599,-500.0,0.00010958,2]
[352713331,1739269844608,-500.0,0.00010958,2]
[352713332,1739269844618,-500.0,0.00010958,2]
[352713333,1739269844628,-500.0,0.00010958,2]
[352713334,1739269844637,-500.0,0.00010958,2]
[352713335,1739269844647,-500.0,0.00010958,2]
[352713336,1739269844656,-500.0,0.00010958,2]
[352713337,1739269844665,-972.07,0.00010958,2]
[352713338,1739269844674,-728.1,0.00010958,2]
[352713339,1739269844682,-500.0,0.00010958,2]
[352713340,1739269844691,-500.0,0.00010958,2]
[352713341,1739269844701,-777.66,0.00010958,2]
[352713342,1739269844710,-1183.44,0.00010958,2]
[352713343,1739269844719,-500.0,0.00010958,2]
[352713344,1739269844729,-542.11,0.00010958,2]
[352713345,1739269844738,-500.0,0.00010958,2]
[352713346,1739269844747,-500.0,0.00010958,2]
[352713347,1739269844756,-500.0,0.00010958,2]
[352713348,1739269844766,-216.50770705,0.00010958,2]
[352713349,1739269844775,-576.23,0.00010958,2]
[352713350,1739269844785,-500.0,0.00010958,2]
[352713351,1739269844794,-500.0,0.00010958,2]
[352713352,1739269844803,-523.47,0.00010958,2]
[352713353,1739269844812,-500.0,0.00010958,2]
[352713354,1739269844821,-500.0,0.00010958,2]
[352713355,1739269844830,-500.0,0.00010958,2]
[352713356,1739269844839,-500.0,0.00010958,2]
[352713357,1739269844849,-500.0,0.00010958,2]
[352713358,1739269844858,-500.0,0.00010958,2]
[352713359,1739269844870,-500.0,0.00010958,2]
[352713360,1739269844879,-500.0,0.00010958,2]
[352713361,1739269844888,-520.86748733,0.00010958,2]
[352713362,1739269844898,-500.0,0.00010958,2]
[352713363,1739269844907,-500.0,0.00010958,2]
[352713364,1739269844916,-636.98,0.00010958,2]
[352713365,1739269844926,-500.0,0.00010958,2]
[352713366,1739269844935,-500.0,0.00010958,2]
[352713367,1739269844944,-500.0,0.00010958,2]
[352713368,1739269844954,-509.86168543,0.00010958,2]
[352713369,1739269844963,-656.68,0.00010958,2]
[352713370,1739269844973,-500.0,0.00010958,2]
[352713371,1739269844983,-506.47773559,0.00010958,2]
[352713372,1739269844993,-536.52,0.00010958,2]
[352713373,1739269845002,-500.0,0.00010958,2]
[352713374,1739269845011,-500.0,0.00010958,2]
[352713375,1739269845020,-500.0,0.00010958,2]
[352713376,1739269845030,-526.6,0.00010958,2]
[352713377,1739269845039,-607.38,0.00010958,2]
[352713378,1739269845049,-500.0,0.00010958,2]
[352713379,1739269845058,-500.0,0.00010958,2]
[352713380,1739269845067,-1144.64,0.00010958,2]
[352713381,1739269845076,-500.0,0.00010958,2]
[352713382,1739269845085,-500.0,0.00010958,2]
[352713383,1739269845094,-500.0,0.00010958,2]
[352713384,1739269845103,-501.35246189,0.00010958,2]
[352713385,1739269845113,-500.0,0.00010958,2]
[352713386,1739269845123,-500.0,0.00010958,2]
[352713387,1739269845132,-500.0,0.00010958,2]
[352713388,1739269845142,-500.0,0.00010958,2]
[352713389,1739269845152,-500.0,0.00010958,2]
[352713390,1739269845162,-500.0,0.00010958,2]
[352713391,1739269845172,-500.0,0.00010958,2]
[352713392,1739269845181,-500.0,0.00010958,2]
[352713393,1739269845192,-500.0,0.00010958,2]
[352713394,1739269845203,-500.0,0.00010958,2]
[352713395,1739269845212,-500.0,0.00010958,2]
[352713398,1739269845376,-500.0,0.00010958,2]
[352713400,1739269845412,-780.77,0.00010958,2]
[352713402,1739269845423,-500.0,0.00010958,2]
[352713404,1739269845433,-500.0,0.00010958,2]
[352713406,1739269845443,-183.49411,0.00010958,2]
[352713408,1739269845452,-500.0,0.00010958,2]
[352713410,1739269845461,-999.0,0.00010958,2]
[352713411,1739269845471,-999.0,0.00010958,2]
[352713412,1739269845480,-1207.01,0.00010958,2]
[352713413,1739269845489,-999.0,0.00010958,2]
[352713414,1739269845499,-999.0,0.00010958,2]
[352713415,1739269845508,-999.0,0.00010958,2]
[352713417,1739269845518,-999.0,0.00010958,2]
[352713418,1739269845528,-500.0,0.00010958,2]
[352713419,1739269845537,-999.0,0.00010958,2]
[352713420,1739269845547,-999.0,0.00010958,2]
[352713422,1739269845556,-999.0,0.00010958,2]
[352713423,1739269845565,-1009.0,0.00010958,2]
[352713424,1739269845575,-500.0,0.00010958,2]
[352713425,1739269845585,-1164.79,0.00010958,2]
[352713426,1739269845594,-551.54,0.00010958,2]
[352713427,1739269845603,-504.70241222,0.00010958,2]
[352713428,1739269845613,-1323.26,0.00010958,2]
[352713429,1739269845625,-501.89680683,0.00010958,2]
[352713430,1739269845635,-951.79,0.00010958,2]
[352713431,1739269845645,-500.0,0.00010958,2]
[352713432,1739269845654,-159.62107,0.00010958,2]
[352713433,1739269845664,-500.0,0.00010958,2]
[352713434,1739269845673,-500.0,0.00010958,2]
[352713435,1739269845683,-500.0,0.00010958,2]
[352713436,1739269845692,-500.0,0.00010958,2]
[352713437,1739269845701,-500.0,0.00010958,2]
[352713438,1739269845710,-500.0,0.00010958,2]
[352713439,1739269845719,-1314.44,0.00010958,2]
[352713440,1739269845728,-500.0,0.00010958,2]
[352713441,1739269845739,-500.0,0.00010958,2]
[352713443,1739269845748,-672.5,0.00010958,2]
[352713444,1739269845757,-504.87326998,0.00010958,2]
[352713445,1739269845766,-901.9,0.00010958,2]
[352713446,1739269845775,-500.0,0.00010958,2]
[352713447,1739269845784,-1033.9,0.00010958,2]
[352713448,1739269845793,-837.03,0.00010958,2]
[352713449,1739269845802,-500.0,0.00010958,2]
[352713450,1739269845811,-500.0,0.00010958,2]
[352713451,1739269845820,-500.0,0.00010958,2]
[352713452,1739269845830,-966.86,0.00010958,2]
[352713453,1739269845840,-1341.25,0.00010958,2]
[352713454,1739269845850,-500.0,0.00010958,2]
[352713455,1739269845859,-616.06,0.00010958,2]
[352713456,1739269845868,-733.45,0.00010958,2]
[352713457,1739269845879,-880.82,0.00010958,2]
[352713458,1739269845888,-500.0,0.00010958,2]
[352713459,1739269845898,-576.08,0.00010958,2]
[352713460,1739269845908,-548.97,0.00010958,2]
[352713461,1739269845917,-500.0,0.00010958,2]
[352713462,1739269845927,-150.0,0.00010958,2]
[352713463,1739269845936,-727.98,0.00010958,2]
[352713464,1739269845945,-500.0,0.00010958,2]
[352713465,1739269845954,-500.0,0.00010958,2]
[352713466,1739269845964,-500.0,0.00010958,2]
[352713467,1739269845973,-500.0,0.00010958,2]
[352713468,1739269845982,-500.0,0.00010958,2]
[352713469,1739269845991,-1439.94,0.00010958,2]
[352713470,1739269846000,-500.0,0.00010958,2]
[352713471,1739269846011,-500.0,0.00010958,2]
[352713472,1739269846020,-500.0,0.00010958,2]
[352713473,1739269846030,-500.0,0.00010958,2]
[352713474,1739269846039,-1254.95,0.00010958,2]
[352713475,1739269846049,-562.96,0.00010958,2]
[352713476,1739269846058,-504.0569734,0.00010958,2]
[352713477,1739269846068,-509.5443679,0.00010958,2]
[352713478,1739269846077,-500.0,0.00010958,2]
[352713479,1739269846086,-500.0,0.00010958,2]
[352713480,1739269846096,-980.56,0.00010958,2]
[352713481,1739269846105,-500.0,0.00010958,2]
[352713483,1739269846115,-500.0,0.00010958,2]
[352713485,1739269846125,-500.0,0.00010958,2]
[352713487,1739269846135,-906.74,0.00010958,2]
[352713489,1739269846146,-500.0,0.00010958,2]
[352713491,1739269846155,-500.0,0.00010958,2]
[352713493,1739269846165,-500.0,0.00010958,2]
[352713495,1739269846174,-500.0,0.00010958,2]
[352713497,1739269846184,-1031.12,0.00010958,2]
[352713499,1739269846196,-500.0,0.00010958,2]
[352713501,1739269846206,-500.0,0.00010958,2]
[352713503,1739269846215,-1395.12,0.00010958,2]
[352713505,1739269846224,-500.0,0.00010958,2]
[352713507,1739269846234,-500.0,0.00010958,2]
[352713510,1739269846244,-500.0,0.00010958,2]
[352713512,1739269846254,-500.0,0.00010958,2]
[352713513,1739269846263,-500.0,0.00010958,2]
[352713516,1739269846274,-1668.25,0.00010958,2]
[352713518,1739269846283,-1320.44,0.00010958,2]
[352713520,1739269846293,-815.41,0.00010958,2]
[352713522,1739269846303,-500.0,0.00010958,2]
[352713524,1739269846312,-500.0,0.00010958,2]
[352713526,1739269846322,-500.0,0.00010958,2]
[352713528,1739269846331,-3617.61,0.00010958,2]
[352713530,1739269846340,-3167.2,0.00010958,2]
[352713532,1739269846349,-500.0,0.00010958,2]
[352713534,1739269846358,-500.0,0.00010958,2]
[352713536,1739269846368,-1428.35,0.00010958,2]
[352713538,1739269846378,-2491.76,0.00010958,2]
[352713540,1739269846388,-500.0,0.00010958,2]
[352713542,1739269846398,-500.0,0.00010958,2]
[352713544,1739269846407,-540.81,0.00010958,2]
[352713546,1739269846418,-1269.59,0.00010958,2]
[352713548,1739269846427,-500.0,0.00010958,2]
[352713550,1739269846437,-1313.44,0.00010958,2]
[352713552,1739269846451,-500.0,0.00010958,2]
[352713554,1739269846460,-503.17739028,0.00010958,2]
[352713556,1739269846470,-2306.68,0.00010958,2]
[352713558,1739269846480,-500.0,0.00010958,2]
[352713560,1739269846489,-500.0,0.00010958,2]
[352713562,1739269846500,-500.0,0.00010958,2]
[352713564,1739269846509,-504.3233696,0.00010958,2]
[352713566,1739269846519,-500.0,0.00010958,2]
[352713568,1739269846529,-500.0,0.00010958,2]
[352713570,1739269846539,-1106.01,0.00010958,2]
[352713572,1739269846549,-1277.83,0.00010958,2]
[352713574,1739269846559,-501.83942955,0.00010958,2]
[352713576,1739269846568,-500.0,0.00010958,2]
[352713578,1739269846578,-500.0,0.00010958,2]
[352713580,1739269846587,-500.0,0.00010958,2]
[352713582,1739269846597,-693.54,0.00010958,2]
[352713584,1739269846607,-1166.39,0.00010958,2]
[352713586,1739269846617,-2393.74,0.00010958,2]
[352713588,1739269846627,-500.0,0.00010958,2]
[352713590,1739269846637,-654.26,0.00010958,2]
[352713592,1739269846646,-500.0,0.00010958,2]
[352713594,1739269846656,-500.0,0.00010958,2]
[352713596,1739269846665,-500.0,0.00010958,2]
[352713598,1739269846674,-1376.56,0.00010958,2]
[352713600,1739269846683,-637.32,0.00010958,2]